[Event "*** Titled Tuesday Blitz"]
[Site "Chess.com"]
[Date "2021.03.30"]
[Round "2"]
[White "Agoking701"]
[Black "manitodeplomo"]
[Result "1/2-1/2"]
[WhiteElo "2323"]
[BlackElo "2572"]
[TimeControl "180+1"]
[EndTime "10:17:34 PDT"]
[Termination "Game drawn by repetition"]

1. e4 {[%clk 0:03:00.9]} 1... g6 {[%clk 0:02:55.1]} 2. d4 {[%clk 0:02:59.4]}
2... Bg7 {[%clk 0:02:55.5]} 3. Nc3 {[%clk 0:02:55.8]} 3... c5 {[%clk 0:02:55.6]}
4. d5 {[%clk 0:02:51.2]} 4... d6 {[%clk 0:02:54.4]} 5. f4 {[%clk 0:02:50.2]}
5... Nf6 {[%clk 0:02:49.4]} 6. Nf3 {[%clk 0:02:50.1]} 6... O-O {[%clk
0:02:46.3]} 7. Bd3 {[%clk 0:02:49.4]} 7... e6 {[%clk 0:02:37.1]} 8. O-O {[%clk
0:02:47.2]} 8... exd5 {[%clk 0:02:36.4]} 9. exd5 {[%clk 0:02:42.1]} 9... a6
{[%clk 0:02:36.3]} 10. a4 {[%clk 0:02:41.4]} 10... Qc7 {[%clk 0:02:34.5]} 11.
Re1 {[%clk 0:02:39.1]} 11... Bg4 {[%clk 0:02:27.9]} 12. h3 {[%clk 0:02:35.2]}
12... Bxf3 {[%clk 0:02:27.5]} 13. Qxf3 {[%clk 0:02:36.1]} 13... Nbd7 {[%clk
0:02:27.7]} 14. Be3 {[%clk 0:02:30.3]} 14... Rae8 {[%clk 0:02:26.8]} 15. Kh2
{[%clk 0:02:04.1]} 15... Re7 {[%clk 0:02:03.9]} 16. Bf2 {[%clk 0:02:00.2]} 16...
Rfe8 {[%clk 0:02:03.7]} 17. Rxe7 {[%clk 0:01:58.3]} 17... Rxe7 {[%clk
0:02:04.6]} 18. Re1 {[%clk 0:01:58.3]} 18... Rxe1 {[%clk 0:02:03.9]} 19. Bxe1
{[%clk 0:01:59.2]} 19... c4 {[%clk 0:01:57]} 20. Bf1 {[%clk 0:01:55.9]} 20...
Qc5 {[%clk 0:01:57.2]} 21. Qe2 {[%clk 0:01:27]} 21... b5 {[%clk 0:01:51.4]} 22.
axb5 {[%clk 0:01:27.9]} 22... axb5 {[%clk 0:01:51.9]} 23. b3 {[%clk 0:01:28.8]}
23... cxb3 {[%clk 0:01:41.1]} 24. cxb3 {[%clk 0:01:29.7]} 24... b4 {[%clk
0:01:40.9]} 25. Ne4 {[%clk 0:01:27.2]} 25... Qxd5 {[%clk 0:01:23.8]} 26. Nxf6+
{[%clk 0:01:24.8]} 26... Nxf6 {[%clk 0:01:24.7]} 27. Bxb4 {[%clk 0:00:58.8]}
27... Qxb3 {[%clk 0:01:08.2]} 28. Bxd6 {[%clk 0:00:44.4]} 28... Qd5 {[%clk
0:01:03.7]} 29. Be5 {[%clk 0:00:42.1]} 29... Ne4 {[%clk 0:00:57.8]} 30. Bxg7
{[%clk 0:00:39.8]} 30... Kxg7 {[%clk 0:00:58.7]} 31. g3 {[%clk 0:00:38.1]} 31...
Qd4 {[%clk 0:00:53.6]} 32. Bg2 {[%clk 0:00:36.8]} 32... f5 {[%clk 0:00:50.5]}
33. Bxe4 {[%clk 0:00:28.9]} 33... fxe4 {[%clk 0:00:50]} 34. Kg2 {[%clk
0:00:26.5]} 34... h5 {[%clk 0:00:49.5]} 35. g4 {[%clk 0:00:25.6]} 35... h4
{[%clk 0:00:48]} 36. Kf1 {[%clk 0:00:18.6]} 36... Kf6 {[%clk 0:00:38.7]} 37.
Qa6+ {[%clk 0:00:17.5]} 37... Kg7 {[%clk 0:00:36.2]} 38. Qb7+ {[%clk 0:00:15.9]}
38... Kf8 {[%clk 0:00:35.2]} 39. Qc8+ {[%clk 0:00:15.6]} 39... Ke7 {[%clk
0:00:34.4]} 40. Qc7+ {[%clk 0:00:15.8]} 40... Ke6 {[%clk 0:00:31.2]} 41. Qc6+
{[%clk 0:00:15.7]} 41... Kf7 {[%clk 0:00:30.1]} 42. Qc7+ {[%clk 0:00:16.2]}
42... Ke8 {[%clk 0:00:29.9]} 43. Qc8+ {[%clk 0:00:16.4]} 43... Ke7 {[%clk
0:00:19.1]} 44. Qc7+ {[%clk 0:00:16.3]} 44... Ke6 {[%clk 0:00:13.5]} 45. Qc6+
{[%clk 0:00:16]} 45... Ke7 {[%clk 0:00:11.5]} 46. Qc7+ {[%clk 0:00:16.3]}
1/2-1/2

[Event "*** Titled Tuesday Blitz"]
[Site "Chess.com"]
[Date "2021.03.30"]
[Round "2"]
[White "Mihnea2017"]
[Black "Susik_Gaboyan"]
[Result "1-0"]
[WhiteElo "2457"]
[BlackElo "2251"]
[TimeControl "180+1"]
[EndTime "10:17:35 PDT"]
[Termination "Mihnea2017 won on time"]

1. e4 {[%clk 0:03:00.9]} 1... c5 {[%clk 0:02:52.9]} 2. Nf3 {[%clk 0:03:00.2]}
2... Nc6 {[%clk 0:02:52.4]} 3. d4 {[%clk 0:03:00.2]} 3... cxd4 {[%clk
0:02:47.2]} 4. Nxd4 {[%clk 0:03:01.1]} 4... Nf6 {[%clk 0:02:47.7]} 5. Nc3 {[%clk
0:03:01.4]} 5... e5 {[%clk 0:02:48.3]} 6. Ndb5 {[%clk 0:03:01.2]} 6... d6 {[%clk
0:02:48.9]} 7. Nd5 {[%clk 0:02:58.8]} 7... Nxd5 {[%clk 0:02:47.9]} 8. exd5
{[%clk 0:02:59.7]} 8... Ne7 {[%clk 0:02:48.5]} 9. c4 {[%clk 0:02:45.9]} 9... Ng6
{[%clk 0:02:47.8]} 10. Be2 {[%clk 0:02:44.6]} 10... Be7 {[%clk 0:02:43.1]} 11.
g3 {[%clk 0:02:40.3]} 11... O-O {[%clk 0:02:39.4]} 12. h4 {[%clk 0:02:40.4]}
12... e4 {[%clk 0:02:21.8]} 13. Be3 {[%clk 0:02:24.1]} 13... a6 {[%clk
0:02:18.4]} 14. Nc3 {[%clk 0:02:23.8]} 14... f5 {[%clk 0:02:12.7]} 15. Qc2
{[%clk 0:02:10.9]} 15... b5 {[%clk 0:01:14.4]} 16. cxb5 {[%clk 0:02:08.6]} 16...
axb5 {[%clk 0:01:15.3]} 17. Bxb5 {[%clk 0:02:04.9]} 17... Ne5 {[%clk 0:00:57.6]}
18. O-O-O {[%clk 0:01:43.4]} 18... Ba6 {[%clk 0:00:55.9]} 19. Bxa6 {[%clk
0:01:31.3]} 19... Rxa6 {[%clk 0:00:56.8]} 20. Kb1 {[%clk 0:01:32.2]} 20... Qa5
{[%clk 0:00:53]} 21. Rd4 {[%clk 0:01:29.2]} 21... Qc7 {[%clk 0:00:22.7]} 22. Ra4
{[%clk 0:01:19.6]} 22... Rxa4 {[%clk 0:00:19.9]} 23. Qxa4 {[%clk 0:01:20.5]}
23... Qb7 {[%clk 0:00:20.5]} 24. Qb5 {[%clk 0:01:13.6]} 24... Qa8 {[%clk
0:00:17.5]} 25. Bd4 {[%clk 0:01:04.6]} 25... Rb8 {[%clk 0:00:17.1]} 26. Qa4
{[%clk 0:01:04.7]} 26... Qb7 {[%clk 0:00:15.7]} 27. b3 {[%clk 0:00:56.1]} 27...
Bf6 {[%clk 0:00:13.9]} 28. Rd1 {[%clk 0:00:53.1]} 28... Rc8 {[%clk 0:00:12.5]}
29. Qb5 {[%clk 0:00:50.5]} 29... Qc7 {[%clk 0:00:09.8]} 30. Kb2 {[%clk
0:00:20.3]} 30... Ng4 {[%clk 0:00:09.5]} 31. Bxf6 {[%clk 0:00:19.6]} 31... Nxf6
{[%clk 0:00:10.4]} 32. Qc6 {[%clk 0:00:18.3]} 32... Qb8 {[%clk 0:00:09.8]} 33.
Qb5 {[%clk 0:00:15.9]} 33... Qa7 {[%clk 0:00:09.9]} 34. Rd2 {[%clk 0:00:14.8]}
34... e3 {[%clk 0:00:08.5]} 35. fxe3 {[%clk 0:00:14.7]} 35... Qxe3 {[%clk
0:00:09.4]} 36. Rc2 {[%clk 0:00:15.6]} 36... Qxg3 {[%clk 0:00:06.6]} 37. a4
{[%clk 0:00:15.5]} 37... Ne4 {[%clk 0:00:06.1]} 38. Nxe4 {[%clk 0:00:14.9]}
38... Rxc2+ {[%clk 0:00:06.8]} 39. Kxc2 {[%clk 0:00:15.2]} 39... Qg2+ {[%clk
0:00:06.8]} 40. Nd2 {[%clk 0:00:15]} 1-0

[Event "*** Titled Tuesday Blitz"]
[Site "Chess.com"]
[Date "2021.03.30"]
[Round "2"]
[White "AndrewMaco"]
[Black "katchesskat"]
[Result "1-0"]
[WhiteElo "2626"]
[BlackElo "2315"]
[TimeControl "180+1"]
[EndTime "10:17:38 PDT"]
[Termination "AndrewMaco won by resignation"]

1. e4 {[%clk 0:03:00.9]} 1... c5 {[%clk 0:03:00.9]} 2. Nf3 {[%clk 0:03:00.8]}
2... e6 {[%clk 0:03:00.3]} 3. g3 {[%clk 0:03:00.8]} 3... Be7 {[%clk 0:02:55.4]}
4. Bg2 {[%clk 0:02:59.5]} 4... h5 {[%clk 0:02:55.2]} 5. O-O {[%clk 0:02:55.6]}
5... h4 {[%clk 0:02:54.9]} 6. c4 {[%clk 0:02:51.9]} 6... a6 {[%clk 0:02:53.7]}
7. Nc3 {[%clk 0:02:51.2]} 7... Qc7 {[%clk 0:02:53.5]} 8. d4 {[%clk 0:02:49.2]}
8... cxd4 {[%clk 0:02:53]} 9. Nxd4 {[%clk 0:02:50.1]} 9... Nf6 {[%clk
0:02:45.6]} 10. b3 {[%clk 0:02:36.7]} 10... hxg3 {[%clk 0:02:39.1]} 11. hxg3
{[%clk 0:02:26.5]} 11... Bc5 {[%clk 0:02:26.5]} 12. Be3 {[%clk 0:01:40]} 12...
Nc6 {[%clk 0:02:25.3]} 13. Rc1 {[%clk 0:01:33.6]} 13... Ne5 {[%clk 0:02:13.9]}
14. Bf4 {[%clk 0:01:10]} 14... g5 {[%clk 0:01:44.3]} 15. Bxg5 {[%clk 0:01:03]}
15... Nfg4 {[%clk 0:01:44.2]} 16. Bf4 {[%clk 0:00:56.2]} 16... d6 {[%clk
0:01:01.7]} 17. Na4 {[%clk 0:00:52.9]} 17... Ba7 {[%clk 0:00:56.5]} 18. Nf3
{[%clk 0:00:43.3]} 18... Nxf3+ {[%clk 0:00:48.9]} 19. Qxf3 {[%clk 0:00:37.4]}
19... Nh2 {[%clk 0:00:47.2]} 20. Qd3 {[%clk 0:00:37.2]} 20... e5 {[%clk
0:00:45.5]} 21. Bg5 {[%clk 0:00:27.9]} 21... Nxf1 {[%clk 0:00:44.4]} 22. Rxf1
{[%clk 0:00:26.2]} 22... Bh3 {[%clk 0:00:42.9]} 23. Bxh3 {[%clk 0:00:19.8]}
23... Rxh3 {[%clk 0:00:42.1]} 24. Rd1 {[%clk 0:00:20.7]} 24... Kd7 {[%clk
0:00:35.9]} 25. Kg2 {[%clk 0:00:20.7]} 25... Rah8 {[%clk 0:00:35]} 26. Bh4
{[%clk 0:00:19]} 26... R8xh4 {[%clk 0:00:32.4]} 27. gxh4 {[%clk 0:00:19.9]}
27... Rxd3 {[%clk 0:00:32.2]} 28. Rxd3 {[%clk 0:00:20.4]} 28... b5 {[%clk
0:00:29.3]} 29. cxb5 {[%clk 0:00:18.6]} 29... axb5 {[%clk 0:00:29]} 30. Nc3
{[%clk 0:00:19.5]} 30... Ke6 {[%clk 0:00:27.5]} 31. Nd5 {[%clk 0:00:18.1]} 31...
Qc2 {[%clk 0:00:27.5]} 32. Rf3 {[%clk 0:00:18.5]} 32... Qxe4 {[%clk 0:00:21.8]}
33. Nf6 {[%clk 0:00:17.9]} 33... Bd4 {[%clk 0:00:19.2]} 34. Nxe4 {[%clk
0:00:17.1]} 34... f5 {[%clk 0:00:19.2]} 35. Ng5+ {[%clk 0:00:17.6]} 35... Kf6
{[%clk 0:00:18.9]} 36. a3 {[%clk 0:00:17.7]} 36... e4 {[%clk 0:00:18.1]} 37.
Nxe4+ {[%clk 0:00:17.5]} 37... Ke5 {[%clk 0:00:17.9]} 38. Ng5 {[%clk 0:00:18.4]}
38... d5 {[%clk 0:00:17.6]} 39. a4 {[%clk 0:00:18.9]} 39... bxa4 {[%clk
0:00:17.5]} 40. bxa4 {[%clk 0:00:19.8]} 40... Bb6 {[%clk 0:00:17.9]} 41. Rd3
{[%clk 0:00:20.7]} 41... Ba5 {[%clk 0:00:17.8]} 42. h5 {[%clk 0:00:21.1]} 42...
Kf6 {[%clk 0:00:17.8]} 43. Nf3 {[%clk 0:00:21.5]} 43... Ke6 {[%clk 0:00:16.5]}
44. h6 {[%clk 0:00:21.7]} 44... Bd8 {[%clk 0:00:14.7]} 45. h7 {[%clk 0:00:22]}
45... Bf6 {[%clk 0:00:15.6]} 46. a5 {[%clk 0:00:22.5]} 46... Kd6 {[%clk
0:00:15.8]} 47. a6 {[%clk 0:00:23]} 47... Kc6 {[%clk 0:00:16.4]} 48. a7 {[%clk
0:00:23.4]} 48... Kb7 {[%clk 0:00:16.8]} 49. Rxd5 {[%clk 0:00:24.3]} 49... Kxa7
{[%clk 0:00:17.3]} 50. Rxf5 {[%clk 0:00:25.2]} 50... Bg7 {[%clk 0:00:17.4]} 51.
Rf7+ {[%clk 0:00:25.7]} 1-0

[Event "*** Titled Tuesday Blitz"]
[Site "Chess.com"]
[Date "2021.03.30"]
[Round "2"]
[White "c63_amg"]
[Black "frenchpin"]
[Result "0-1"]
[WhiteElo "2716"]
[BlackElo "2521"]
[TimeControl "180+1"]
[EndTime "10:17:40 PDT"]
[Termination "frenchpin won on time"]

1. e4 {[%clk 0:02:56]} 1... e6 {[%clk 0:03:00.9]} 2. d4 {[%clk 0:02:55.2]} 2...
d5 {[%clk 0:03:01.3]} 3. Nc3 {[%clk 0:02:55.6]} 3... Bb4 {[%clk 0:03:01.7]} 4.
Ne2 {[%clk 0:02:54.5]} 4... Nf6 {[%clk 0:03:01.2]} 5. e5 {[%clk 0:02:53.7]} 5...
Nfd7 {[%clk 0:03:01.6]} 6. Qd3 {[%clk 0:02:54.1]} 6... c5 {[%clk 0:03:01.2]} 7.
Qg3 {[%clk 0:02:54.6]} 7... Kf8 {[%clk 0:02:50.9]} 8. a3 {[%clk 0:02:50.8]} 8...
Bxc3+ {[%clk 0:02:45.6]} 9. bxc3 {[%clk 0:02:51.7]} 9... b6 {[%clk 0:02:44.5]}
10. a4 {[%clk 0:02:41.6]} 10... Ba6 {[%clk 0:02:41.2]} 11. a5 {[%clk 0:02:35.2]}
11... Nc6 {[%clk 0:02:40.9]} 12. Ba3 {[%clk 0:02:24.9]} 12... Nxa5 {[%clk
0:02:33.6]} 13. dxc5 {[%clk 0:02:18.3]} 13... bxc5 {[%clk 0:02:31.3]} 14. Bc1
{[%clk 0:01:53.9]} 14... Rb8 {[%clk 0:02:23.1]} 15. h4 {[%clk 0:01:48.6]} 15...
Qc7 {[%clk 0:02:11.7]} 16. h5 {[%clk 0:01:46.6]} 16... h6 {[%clk 0:02:08.2]} 17.
Rh4 {[%clk 0:01:43.7]} 17... Bxe2 {[%clk 0:00:53.4]} 18. Bxe2 {[%clk 0:01:41.9]}
18... Nc6 {[%clk 0:00:51.6]} 19. f4 {[%clk 0:01:35.6]} 19... Ne7 {[%clk
0:00:51.1]} 20. Qf2 {[%clk 0:01:27.4]} 20... Nf5 {[%clk 0:00:46.9]} 21. Rh3
{[%clk 0:01:27.8]} 21... d4 {[%clk 0:00:46.5]} 22. g4 {[%clk 0:01:27]} 22... Ne7
{[%clk 0:00:39.1]} 23. cxd4 {[%clk 0:01:15.7]} 23... Nd5 {[%clk 0:00:34.1]} 24.
Ba3 {[%clk 0:00:48.6]} 24... Nb4 {[%clk 0:00:30.4]} 25. Bxb4 {[%clk 0:00:39.6]}
25... cxb4 {[%clk 0:00:31.3]} 26. Kd1 {[%clk 0:00:21.1]} 26... Nb6 {[%clk
0:00:28.7]} 27. Bf3 {[%clk 0:00:17.5]} 27... Qc3 {[%clk 0:00:22.4]} 28. Rxa7
{[%clk 0:00:14.2]} 28... Nc4 {[%clk 0:00:21.8]} 29. Bg2 {[%clk 0:00:08.7]} 29...
Qb2 {[%clk 0:00:17.3]} 30. d5 {[%clk 0:00:07.5]} 30... Qb1+ {[%clk 0:00:14.7]}
31. Ke2 {[%clk 0:00:08]} 31... Qxc2+ {[%clk 0:00:14.8]} 32. Kf1 {[%clk
0:00:07.7]} 32... Qc1+ {[%clk 0:00:10.9]} 33. Qe1 {[%clk 0:00:05.3]} 33... Qxf4+
{[%clk 0:00:10.9]} 34. Kg1 {[%clk 0:00:05.9]} 34... Qd4+ {[%clk 0:00:10.1]} 35.
Qf2 {[%clk 0:00:05.1]} 35... Qxf2+ {[%clk 0:00:09.1]} 36. Kxf2 {[%clk 0:00:06]}
36... b3 {[%clk 0:00:08.8]} 37. Rh1 {[%clk 0:00:03.9]} 37... b2 {[%clk
0:00:08.7]} 38. Rb1 {[%clk 0:00:04.6]} 38... Kg8 {[%clk 0:00:03.9]} 39. d6
{[%clk 0:00:03.3]} 39... Kh7 {[%clk 0:00:03.3]} 0-1

[Event "*** Titled Tuesday Blitz"]
[Site "Chess.com"]
[Date "2021.03.30"]
[Round "2"]
[White "aa175"]
[Black "azikom"]
[Result "0-1"]
[WhiteElo "2481"]
[BlackElo "2693"]
[TimeControl "180+1"]
[EndTime "10:17:40 PDT"]
[Termination "azikom won by resignation"]

1. d4 {[%clk 0:02:04.3]} 1... Nf6 {[%clk 0:03:00.9]} 2. Nf3 {[%clk 0:02:04.2]}
2... e6 {[%clk 0:03:00.9]} 3. Bf4 {[%clk 0:02:04.8]} 3... b5 {[%clk 0:02:59.6]}
4. e3 {[%clk 0:02:05.1]} 4... a6 {[%clk 0:02:58.8]} 5. Nbd2 {[%clk 0:02:05.4]}
5... Bb7 {[%clk 0:02:59.2]} 6. Bd3 {[%clk 0:02:05.3]} 6... c5 {[%clk 0:02:58]}
7. c3 {[%clk 0:02:04.9]} 7... d5 {[%clk 0:02:56.2]} 8. Ne5 {[%clk 0:02:04.1]}
8... Nc6 {[%clk 0:02:53.8]} 9. a4 {[%clk 0:02:00.8]} 9... b4 {[%clk 0:02:52.6]}
10. Ndf3 {[%clk 0:01:56.6]} 10... c4 {[%clk 0:02:52.2]} 11. Bc2 {[%clk
0:01:53.7]} 11... b3 {[%clk 0:02:51.5]} 12. Bb1 {[%clk 0:01:51.4]} 12... Be7
{[%clk 0:02:51.3]} 13. Ng5 {[%clk 0:01:50.8]} 13... O-O {[%clk 0:02:41.1]} 14.
Qf3 {[%clk 0:01:34.5]} 14... h6 {[%clk 0:02:40.3]} 15. h4 {[%clk 0:01:32.6]}
15... Nxe5 {[%clk 0:02:30.1]} 16. dxe5 {[%clk 0:01:30.3]} 16... Nd7 {[%clk
0:02:29.2]} 17. Qg4 {[%clk 0:01:13.6]} 17... Kh8 {[%clk 0:01:57.9]} 18. Nxf7+
{[%clk 0:00:30.7]} 18... Rxf7 {[%clk 0:01:56.8]} 19. Qg6 {[%clk 0:00:18.7]}
19... Qg8 {[%clk 0:01:47]} 20. Qxe6 {[%clk 0:00:10.3]} 20... Nc5 {[%clk
0:01:43.3]} 21. Qg6 {[%clk 0:00:05.2]} 21... Raf8 {[%clk 0:01:31.9]} 22. Bxh6
{[%clk 0:00:03.8]} 22... gxh6 {[%clk 0:01:31.6]} 23. Qxh6+ {[%clk 0:00:04.7]}
23... Rh7 {[%clk 0:01:32.1]} 24. Bxh7 {[%clk 0:00:05.6]} 24... Qxh7 {[%clk
0:01:31.9]} 25. Qxh7+ {[%clk 0:00:04.6]} 25... Kxh7 {[%clk 0:01:31.7]} 26. O-O
{[%clk 0:00:01.8]} 26... Nd3 {[%clk 0:01:30]} 27. f4 {[%clk 0:00:01.7]} 27...
Nxb2 {[%clk 0:01:23.1]} 28. g4 {[%clk 0:00:01.2]} 28... Nd3 {[%clk 0:01:20.9]}
29. f5 {[%clk 0:00:01.5]} 29... Nxe5 {[%clk 0:01:19.6]} 30. g5 {[%clk
0:00:01.8]} 30... Bc5 {[%clk 0:01:19.1]} 31. Rfe1 {[%clk 0:00:01.5]} 31... Rxf5
{[%clk 0:01:16.4]} 32. Re2 {[%clk 0:00:01.6]} 32... Kg6 {[%clk 0:01:16]} 33. Kg2
{[%clk 0:00:01.8]} 33... d4+ {[%clk 0:01:14.9]} 34. e4 {[%clk 0:00:01.7]} 34...
d3 {[%clk 0:01:09.4]} 35. Ree1 {[%clk 0:00:01.3]} 35... Rf2+ {[%clk 0:01:08.3]}
36. Kg3 {[%clk 0:00:01.3]} 36... Rf3+ {[%clk 0:01:03.8]} 37. Kg2 {[%clk
0:00:01.8]} 37... Rf4 {[%clk 0:01:04]} 38. Kh2 {[%clk 0:00:02.1]} 38... Rxh4+
{[%clk 0:01:03.2]} 39. Kg3 {[%clk 0:00:02.6]} 39... Rg4+ {[%clk 0:01:00.5]} 40.
Kh3 {[%clk 0:00:03.1]} 40... Kxg5 {[%clk 0:01:00.4]} 41. a5 {[%clk 0:00:03.5]}
41... Bxe4 {[%clk 0:00:55.3]} 42. Rxe4 {[%clk 0:00:02.8]} 42... Rxe4 {[%clk
0:00:53.7]} 43. Rf1 {[%clk 0:00:03.3]} 43... Re3+ {[%clk 0:00:52.5]} 44. Kg2
{[%clk 0:00:02.7]} 44... Re2+ {[%clk 0:00:51.8]} 45. Kh1 {[%clk 0:00:02.6]}
45... Re3 {[%clk 0:00:48]} 46. Rg1+ {[%clk 0:00:01.9]} 46... Kf5 {[%clk
0:00:46.8]} 47. Rf1+ {[%clk 0:00:02.3]} 47... Ke6 {[%clk 0:00:46.3]} 48. Kg2
{[%clk 0:00:01.2]} 48... d2 {[%clk 0:00:46.1]} 49. Kh1 {[%clk 0:00:01.3]} 49...
Rxc3 {[%clk 0:00:44.3]} 50. Rd1 {[%clk 0:00:01.5]} 50... Rc1 {[%clk 0:00:43.1]}
51. Rf1 {[%clk 0:00:01.2]} 0-1

[Event "*** Titled Tuesday Blitz"]
[Site "Chess.com"]
[Date "2021.03.30"]
[Round "2"]
[White "jup1978"]
[Black "Rodalquilar"]
[Result "0-1"]
[WhiteElo "2336"]
[BlackElo "2654"]
[TimeControl "180+1"]
[EndTime "10:17:40 PDT"]
[Termination "Rodalquilar won by resignation"]

1. e4 {[%clk 0:03:00.9]} 1... d5 {[%clk 0:03:00.1]} 2. exd5 {[%clk 0:03:00.4]}
2... Qxd5 {[%clk 0:03:01]} 3. Nc3 {[%clk 0:03:00.7]} 3... Qa5 {[%clk 0:03:01.3]}
4. d4 {[%clk 0:03:01.2]} 4... Nf6 {[%clk 0:03:01.8]} 5. Bc4 {[%clk 0:03:01.4]}
5... Bg4 {[%clk 0:03:01.5]} 6. Nf3 {[%clk 0:02:58.1]} 6... Nc6 {[%clk 0:03:01]}
7. h3 {[%clk 0:02:52.3]} 7... Bxf3 {[%clk 0:02:57.3]} 8. Qxf3 {[%clk 0:02:50.9]}
8... O-O-O {[%clk 0:02:57.3]} 9. d5 {[%clk 0:02:37.2]} 9... Nd4 {[%clk 0:02:45]}
10. Qd3 {[%clk 0:02:28.4]} 10... e5 {[%clk 0:02:45.1]} 11. O-O {[%clk
0:02:23.5]} 11... Kb8 {[%clk 0:02:26.6]} 12. Ne2 {[%clk 0:02:21.4]} 12... Qb6
{[%clk 0:01:23]} 13. c3 {[%clk 0:02:03.4]} 13... Nxe2+ {[%clk 0:01:15.6]} 14.
Qxe2 {[%clk 0:02:04.3]} 14... Bd6 {[%clk 0:01:15.8]} 15. Bg5 {[%clk 0:01:52.3]}
15... h6 {[%clk 0:01:04.8]} 16. Bxf6 {[%clk 0:01:52.1]} 16... gxf6 {[%clk
0:01:05.7]} 17. Qe4 {[%clk 0:01:51.6]} 17... Qxb2 {[%clk 0:01:02.9]} 18. Rab1
{[%clk 0:01:39.9]} 18... Qxc3 {[%clk 0:01:03.1]} 19. Rfc1 {[%clk 0:01:37.1]}
19... Qd4 {[%clk 0:01:01.8]} 20. Qc2 {[%clk 0:01:33]} 20... Bc5 {[%clk
0:00:57.7]} 21. Ba6 {[%clk 0:01:23.5]} 21... Bb6 {[%clk 0:00:56.6]} 22. a4
{[%clk 0:01:24]} 22... Rxd5 {[%clk 0:00:52.7]} 23. Bxb7 {[%clk 0:01:03.1]} 23...
Rc5 {[%clk 0:00:44.5]} 24. Qe4 {[%clk 0:00:43.7]} 24... Rxc1+ {[%clk 0:00:18.5]}
25. Rxc1 {[%clk 0:00:44.6]} 25... Qxe4 {[%clk 0:00:19.1]} 26. Bxe4 {[%clk
0:00:44.2]} 26... Rd8 {[%clk 0:00:20]} 27. Rb1 {[%clk 0:00:40.2]} 27... Rd4
{[%clk 0:00:19.5]} 28. Bc6 {[%clk 0:00:34.5]} 28... a5 {[%clk 0:00:19.7]} 29.
Rb2 {[%clk 0:00:31.7]} 29... Rc4 {[%clk 0:00:17.3]} 30. Bb5 {[%clk 0:00:30.8]}
30... Rc1+ {[%clk 0:00:14.8]} 31. Kh2 {[%clk 0:00:30.8]} 31... Ka7 {[%clk
0:00:15.7]} 32. g3 {[%clk 0:00:30.7]} 32... c6 {[%clk 0:00:16.2]} 33. Bd3 {[%clk
0:00:27.8]} 33... Rc3 {[%clk 0:00:16.4]} 34. Be4 {[%clk 0:00:26.3]} 34... Rc4
{[%clk 0:00:16.3]} 35. Bf5 {[%clk 0:00:24.6]} 35... Rxa4 {[%clk 0:00:16.2]} 36.
Rd2 {[%clk 0:00:21.4]} 36... Rd4 {[%clk 0:00:16.2]} 37. Rc2 {[%clk 0:00:20.9]}
37... c5 {[%clk 0:00:15.2]} 38. Kg2 {[%clk 0:00:20.5]} 38... a4 {[%clk
0:00:14.9]} 39. Ra2 {[%clk 0:00:20.6]} 39... Ka6 {[%clk 0:00:13.4]} 40. Bc2
{[%clk 0:00:20.1]} 40... Ka5 {[%clk 0:00:13.7]} 41. Bf5 {[%clk 0:00:19]} 41...
c4 {[%clk 0:00:13.2]} 42. Bh7 {[%clk 0:00:17.9]} 42... c3 {[%clk 0:00:13.4]} 43.
Bg8 {[%clk 0:00:18.4]} 43... Rd2 {[%clk 0:00:13.8]} 44. Ra1 {[%clk 0:00:17.7]}
44... Rxf2+ {[%clk 0:00:14.1]} 45. Kh1 {[%clk 0:00:16.9]} 45... c2 {[%clk
0:00:14.2]} 46. Bh7 {[%clk 0:00:15.3]} 46... Be3 {[%clk 0:00:13.5]} 0-1

[Event "*** Titled Tuesday Blitz"]
[Site "Chess.com"]
[Date "2021.03.30"]
[Round "2"]
[White "Julianos82"]
[Black "vinniethepooh"]
[Result "0-1"]
[WhiteElo "2389"]
[BlackElo "2649"]
[TimeControl "180+1"]
[EndTime "10:17:45 PDT"]
[Termination "vinniethepooh won by resignation"]

1. d4 {[%clk 0:03:00.9]} 1... Nf6 {[%clk 0:02:58.1]} 2. Nf3 {[%clk 0:03:00.4]}
2... d5 {[%clk 0:02:55.5]} 3. Bf4 {[%clk 0:02:59.5]} 3... c5 {[%clk 0:02:55.1]}
4. e3 {[%clk 0:02:59.2]} 4... Nc6 {[%clk 0:02:55.6]} 5. c3 {[%clk 0:02:56.1]}
5... e6 {[%clk 0:02:55.8]} 6. Nbd2 {[%clk 0:02:55]} 6... cxd4 {[%clk 0:02:56.3]}
7. exd4 {[%clk 0:02:54.5]} 7... Nh5 {[%clk 0:02:56.7]} 8. Bg5 {[%clk 0:02:39.4]}
8... f6 {[%clk 0:02:56.2]} 9. Be3 {[%clk 0:02:33.3]} 9... Bd6 {[%clk 0:02:55.8]}
10. Ne5 {[%clk 0:02:23.2]} 10... g6 {[%clk 0:02:54.7]} 11. Nxc6 {[%clk
0:02:07.2]} 11... bxc6 {[%clk 0:02:55.6]} 12. g3 {[%clk 0:02:02.9]} 12... O-O
{[%clk 0:02:51]} 13. Bd3 {[%clk 0:02:01.2]} 13... e5 {[%clk 0:02:46.9]} 14. O-O
{[%clk 0:01:51.1]} 14... Bh3 {[%clk 0:02:38.6]} 15. Re1 {[%clk 0:01:50.3]} 15...
Qd7 {[%clk 0:02:38.4]} 16. c4 {[%clk 0:01:41.6]} 16... Rab8 {[%clk 0:02:10.8]}
17. c5 {[%clk 0:01:31.2]} 17... Bc7 {[%clk 0:02:04.6]} 18. Rb1 {[%clk
0:01:31.2]} 18... Rfe8 {[%clk 0:01:40.7]} 19. b4 {[%clk 0:01:28.4]} 19... Bg4
{[%clk 0:01:21]} 20. Be2 {[%clk 0:01:22.1]} 20... Bxe2 {[%clk 0:01:18.7]} 21.
Rxe2 {[%clk 0:01:23]} 21... e4 {[%clk 0:01:05.8]} 22. a4 {[%clk 0:01:16.9]}
22... f5 {[%clk 0:01:05.4]} 23. f4 {[%clk 0:01:03.1]} 23... exf3 {[%clk
0:01:04.9]} 24. Nxf3 {[%clk 0:01:01.3]} 24... f4 {[%clk 0:01:05.4]} 25. Bf2
{[%clk 0:00:48.6]} 25... fxg3 {[%clk 0:01:00]} 26. hxg3 {[%clk 0:00:48.7]} 26...
Bxg3 {[%clk 0:00:57.2]} 27. Bxg3 {[%clk 0:00:39.2]} 27... Nxg3 {[%clk
0:00:55.6]} 28. Rg2 {[%clk 0:00:30.2]} 28... Qh3 {[%clk 0:00:54.8]} 29. Rh2
{[%clk 0:00:29.8]} 29... Qf5 {[%clk 0:00:52.3]} 30. Rbb2 {[%clk 0:00:25.8]}
30... Re3 {[%clk 0:00:45.7]} 31. Ne5 {[%clk 0:00:25.8]} 31... Ne4 {[%clk
0:00:39.1]} 32. Rbg2 {[%clk 0:00:24.8]} 32... Re8 {[%clk 0:00:35.7]} 33. Qc1
{[%clk 0:00:24.9]} 33... Rb3 {[%clk 0:00:16.1]} 34. Kh1 {[%clk 0:00:13.7]} 34...
Rb1 {[%clk 0:00:14]} 35. Qxb1 {[%clk 0:00:11.4]} 35... Ng3+ {[%clk 0:00:14.5]}
36. Rxg3 {[%clk 0:00:11.7]} 36... Qxb1+ {[%clk 0:00:15.4]} 37. Rg1 {[%clk
0:00:12.1]} 37... Qe4+ {[%clk 0:00:15.5]} 38. Rhg2 {[%clk 0:00:11.9]} 38... Qh4+
{[%clk 0:00:15.6]} 39. Rh2 {[%clk 0:00:11.5]} 39... Qxd4 {[%clk 0:00:15.8]} 40.
Rhg2 {[%clk 0:00:12]} 40... Qxe5 {[%clk 0:00:15.8]} 41. b5 {[%clk 0:00:12.2]}
41... cxb5 {[%clk 0:00:15.8]} 42. axb5 {[%clk 0:00:12.8]} 42... d4 {[%clk
0:00:16.5]} 43. c6 {[%clk 0:00:12.9]} 43... Qxb5 {[%clk 0:00:17.4]} 44. c7
{[%clk 0:00:12.8]} 44... Rc8 {[%clk 0:00:17.7]} 45. Rc2 {[%clk 0:00:11.2]} 45...
Qd7 {[%clk 0:00:18.2]} 46. Rgc1 {[%clk 0:00:10.8]} 46... d3 {[%clk 0:00:18.8]}
47. Rc3 {[%clk 0:00:10.9]} 47... d2 {[%clk 0:00:19.2]} 48. Rd1 {[%clk
0:00:11.5]} 48... Rxc7 {[%clk 0:00:19.8]} 49. Rd3 {[%clk 0:00:11.8]} 49... Qxd3
{[%clk 0:00:19.9]} 0-1